bitfinex/quotes_SOLUSD_20260228
["timestamp","ask_amount","ask_price","bid_price","bid_amount"]
[1772264676058,4.14500761,79.379,79.341,4.41344899]
[1772264676680,4.14500761,79.377,79.341,4.41344899]
[1772264677464,12.59794905,79.378,79.343,4.41344899]
[1772264677668,12.59794905,79.378,79.351,4.41344899]
[1772264679472,31.49110099,79.388,79.351,4.41344899]
[1772264679473,4.14500761,79.384,79.351,4.41344899]
[1772264679660,4.14500761,79.384,79.342,17.01708421]
[1772264679863,4.14500761,79.379,79.342,4.41344899]
[1772264681477,4.45230123,79.377,79.342,4.41344899]
[1772264681776,4.45230123,79.377,79.34,16.99108842]
[1772264682873,4.33333774,79.359,79.33,16.99108842]
[1772264683081,4.33333774,79.359,79.324,4.21088279]
[1772264683572,16.99108842,79.36,79.325,12.60636621]
[1772264683573,4.33333774,79.357,79.325,12.60636621]
[1772264683753,12.59921884,79.37,79.341,4.21088279]
[1772264684159,4.33333774,79.359,79.324,4.21088279]
[1772264685363,4.33333774,79.367,79.332,12.60525386]
[1772264685566,4.33333774,79.367,79.341,4.21088279]
[1772264686956,16.99108842,79.36,79.333,4.21088279]
[1772264687279,44.09948844,79.366,79.341,4.21088279]
[1772264687280,4.33333774,79.365,79.341,4.21088279]
[1772264687578,4.33333774,79.365,79.33,17.0071395]
[1772264687579,17.0071395,79.36,79.331,4.21088279]
[1772264688258,4.33333774,79.359,79.331,4.21088279]
[1772264689066,4.33333774,79.366,79.333,4.21088279]
[1772264689384,62.98323844,79.387,79.332,12.60525386]
[1772264689385,4.33333774,79.394,79.351,4.21088279]
[1772264689560,62.96955706,79.404,79.332,44.11838853]
[1772264689561,4.33333774,79.379,79.343,4.21088279]
[1772264689762,62.96955706,79.404,79.343,4.21088279]
[1772264689763,4.33333774,79.369,79.343,4.21088279]
[1772264690280,62.96955706,79.404,79.333,4.21088279]
[1772264690281,4.33333774,79.359,79.333,4.21088279]
[1772264690660,4.33333774,79.359,79.32,4.21088279]
[1772264690867,17.0071395,79.36,79.33,17.0071395]
[1772264691061,4.33333774,79.349,79.321,4.21088279]
[1772264692266,44.10337831,79.359,79.31,17.0071395]
[1772264692267,17.0071395,79.34,79.313,4.21088279]
[1772264692476,4.33333774,79.339,79.308,12.60896759]
[1772264692683,4.33333774,79.339,79.309,4.21088279]
[1772264693181,4.33333774,79.337,79.309,4.21088279]
[1772264693569,4.33333774,79.337,79.303,8.18303754]
[1772264693570,4.33333774,79.329,79.303,8.18303754]
[1772264693770,4.33333774,79.329,79.299,4.21088279]
[1772264694066,17.0071395,79.32,79.299,4.21088279]
[1772264694261,17.0071395,79.32,79.29,17.0071395]
[1772264694262,17.0071395,79.32,79.291,4.21088279]
[1772264694487,17.0071395,79.33,79.301,4.21088279]
[1772264694869,4.33333774,79.319,79.29,17.0071395]
[1772264695068,4.33333774,79.319,79.288,4.21088279]
[1772264695384,4.33333774,79.317,79.288,4.21088279]
[1772264697386,16.9411344,79.316,79.288,4.21088279]
[1772264698389,17.0071395,79.31,79.288,4.21088279]
[1772264698966,21.34047724,79.31,79.281,4.21088279]
[1772264699174,4.33333774,79.31,79.282,4.21088279]
[1772264699580,12.60890945,79.309,79.282,4.21088279]
[1772264699892,12.60890945,79.309,79.28,0.2]
[1772264699893,17.0071395,79.3,79.28,0.2]
[1772264700065,4.33333774,79.308,79.28,0.2]
[1772264700880,4.33333774,79.315,79.283,4.21088279]
[1772264701077,4.33333774,79.309,79.28,0.2]
[1772264701689,4.33333774,79.309,79.27,17.0071395]
[1772264701690,4.33333774,79.299,79.27,17.0071395]
[1772264701896,17.0071395,79.28,79.26,0.2]
[1772264702196,4.33333774,79.269,79.25,1e-08]
[1772264702370,4.33333774,79.269,79.221,4.21088279]
[1772264702371,4.33333774,79.259,79.226,12.622119]
[1772264702570,4.33333774,79.259,79.231,4.21088279]
[1772264702771,0.28432314,79.268,79.231,4.21088279]
[1772264702772,4.33333774,79.269,79.231,4.21088279]
[1772264702971,17.0071395,79.26,79.231,4.21088279]
[1772264703469,17.0071395,79.26,79.23,21.21802229]
[1772264703679,4.33333774,79.249,79.221,4.21088279]
[1772264703872,4.33333774,79.248,79.211,4.21088279]
[1772264704377,4.33333774,79.239,79.211,4.21088279]
[1772264704573,4.33333774,79.239,79.201,4.21088279]
[1772264704773,4.33333774,79.229,79.2,17.0071395]
[1772264704976,4.33333774,79.229,79.201,4.21088279]
[1772264705592,12.62020747,79.238,79.202,12.62594378]
[1772264705789,12.62020747,79.238,79.203,4.21088279]
[1772264705790,17.0071395,79.23,79.203,4.21088279]
[1772264705987,4.33333774,79.229,79.195,4.21088279]
[1772264706294,44.17072616,79.238,79.201,4.21088279]
[1772264706295,12.62020747,79.238,79.201,4.21088279]
[1772264706494,12.62020747,79.238,79.211,4.21088279]
[1772264706897,4.33333774,79.269,79.221,4.21088279]
[1772264707096,12.61415813,79.276,79.221,4.21088279]
[1772264707097,17.0071395,79.26,79.221,4.21088279]
[1772264707296,4.33333774,79.249,79.221,4.21088279]
[1772264707488,4.33333774,79.249,79.211,4.21088279]
[1772264707797,4.33333774,79.247,79.213,4.21088279]
[1772264708101,12.61861498,79.248,79.194,4.21088279]
[1772264708102,17.0071395,79.22,79.194,4.21088279]
[1772264708298,4.33333774,79.239,79.201,4.21088279]
[1772264708594,17.0071395,79.32,79.178,44.20419812]
[1772264708595,4.33333774,79.258,79.221,4.21088279]
[1772264708786,4.33333774,79.268,79.221,4.21088279]
[1772264708993,4.33333774,79.266,79.231,4.21088279]
[1772264709197,17.0071395,79.26,79.231,4.21088279]
[1772264709579,21.34047724,79.25,79.223,12.62259697]
[1772264709788,16.95179349,79.249,79.222,4.21088279]
[1772264709989,17.0071395,79.25,79.223,4.21088279]
[1772264711089,4.0671619,79.249,79.223,4.21088279]
[1772264711294,44.16125165,79.255,79.206,3.91691576]
[1772264711295,4.0671619,79.239,79.206,3.91691576]
[1772264711487,17.0071395,79.23,79.191,3.91691576]
[1772264711691,4.0671619,79.229,79.193,3.91691576]
[1772264711899,16.68885935,79.229,79.193,3.91691576]
[1772264712104,4.0671619,79.228,79.193,3.91691576]
[1772264712310,17.0071395,79.22,79.193,3.91691576]
[1772264712493,4.0671619,79.228,79.193,3.91691576]
[1772264712702,17.0071395,79.22,79.193,3.91691576]
[1772264713200,4.0671619,79.228,79.193,3.91691576]
[1772264713600,12.62195968,79.227,79.193,3.91691576]
[1772264713805,17.0071395,79.22,79.195,3.91691576]
[1772264713996,12.62195968,79.227,79.195,3.91691576]
[1772264714191,17.0071395,79.22,79.195,3.91691576]
[1772264714391,12.62195968,79.227,79.195,3.91691576]
[1772264715212,17.0071395,79.22,79.195,3.91691576]
[1772264715601,21.0743014,79.22,79.195,3.91691576]
[1772264715808,21.0743014,79.22,79.155,63.16642801]
[1772264715809,4.10460534,79.24,79.21,17.0071395]
[1772264715997,4.10460534,79.239,79.2,17.0071395]
[1772264716508,4.10460534,79.229,79.19,17.0071395]
[1772264716810,4.10460534,79.229,79.2,17.0071395]
[1772264717199,4.10460534,79.229,79.19,17.0071395]
[1772264717517,4.10460534,79.219,79.163,44.21257405]
[1772264717710,16.72805707,79.218,79.18,17.0071395]
[1772264718011,4.10460534,79.199,79.163,44.21257405]
[1772264719103,4.10460534,79.199,79.163,12.63216401]
[1772264719305,4.10460534,79.199,79.163,44.21257405]
[1772264719617,17.0071395,79.19,79.163,12.63216401]
[1772264719913,4.10460534,79.197,79.16,17.0071395]
[1772264720114,4.10460534,79.189,79.15,17.0071395]
[1772264720813,4.10460534,79.206,79.17,17.0071395]
[1772264721222,4.10460534,79.189,79.139,63.17988775]
[1772264721524,4.10460534,79.189,79.138,44.22654097]
[1772264721525,4.10460534,79.189,79.15,17.0071395]
[1772264721700,4.10460534,79.177,79.14,17.0071395]
[1772264722102,4.10460534,79.177,79.122,63.19350233]
[1772264722297,12.62817598,79.188,79.15,17.0071395]
[1772264722509,4.10460534,79.187,79.122,63.19350233]
[1772264722717,17.0071395,79.18,79.14,17.0071395]
[1772264722898,4.10460534,79.179,79.14,17.0071395]
[1772264723318,17.0071395,79.19,79.16,17.0071395]
[1772264723635,4.10460534,79.189,79.16,17.0071395]
[1772264723834,50.4443211,79.296,79.17,17.0071395]
[1772264723835,4.10460534,79.215,79.17,17.0071395]
[1772264724116,4.10460534,79.215,79.16,12.63263601]
[1772264724117,17.0071395,79.23,79.191,3.81375744]
[1772264724498,17.0071395,79.23,79.201,3.74997209]
[1772264725722,17.0071395,79.23,79.191,3.69196673]
[1772264725929,4.0671619,79.236,79.201,3.69196673]
[1772264726105,17.0071395,79.23,79.201,3.69196673]
[1772264726298,4.0671619,79.229,79.19,12.62775788]
[1772264726613,4.0671619,79.219,79.181,12.62929238]
[1772264726815,4.0671619,79.209,79.175,12.63024944]
[1772264726997,4.0671619,79.209,79.176,3.62959432]
[1772264727315,4.0671619,79.209,79.175,12.63024944]
[1772264727316,4.0671619,79.209,79.18,17.0071395]
[1772264727720,4.0671619,79.238,79.201,3.5679226]
[1772264727902,4.0671619,79.247,79.211,3.5679226]
[1772264728808,4.0671619,79.239,79.21,17.0071395]
[1772264729015,12.61781796,79.254,79.221,3.50694356]
[1772264729216,4.0671619,79.249,79.193,3.50694356]
[1772264729527,4.0671619,79.249,79.22,17.0071395]
[1772264729727,31.53788825,79.27,79.231,12.62132246]
[1772264729728,4.0671619,79.259,79.231,12.62132246]
[1772264730418,4.0671619,79.259,79.228,3.43963318]
[1772264730419,12.61702288,79.258,79.228,3.43963318]
[1772264730725,12.61702288,79.258,79.18,63.47946185]
[1772264730726,4.0671619,79.257,79.22,17.0071395]
[1772264731207,4.0671619,79.257,79.23,17.0071395]
[1772264731407,4.0671619,79.269,79.23,17.0071395]
[1772264731722,16.68296489,79.266,79.231,12.62132246]
[1772264731929,4.0671619,79.265,79.231,12.62132246]
[1772264732122,12.61580299,79.266,79.213,12.62419047]
[1772264732123,4.0671619,79.249,79.213,12.62419047]
[1772264732326,4.0671619,79.249,79.191,63.13843372]
[1772264732327,4.0671619,79.239,79.201,12.6261032]
[1772264733424,4.0671619,79.229,79.2,32.94697989]
[1772264733624,4.0671619,79.229,79.194,12.62712256]
[1772264733826,4.0671619,79.229,79.139,63.07154304]
[1772264733827,4.0671619,79.209,79.164,3.18429909]
[1772264734033,4.0671619,79.209,79.171,3.18429909]
[1772264734213,12.62180037,79.228,79.181,3.18429909]
[1772264734214,4.0671619,79.219,79.181,3.18429909]
[1772264734521,17.0071395,79.21,79.181,3.18429909]
[1772264735027,17.0071395,79.2,79.165,12.63184488]
[1772264735325,4.0671619,79.199,79.165,12.63184488]
[1772264735550,4.0671619,79.189,79.155,12.63344071]
[1772264735828,4.0671619,79.188,79.149,3.05776498]
[1772264736018,31.58372331,79.231,79.141,12.63567556]
[1772264736019,4.0671619,79.179,79.141,15.69344054]
[1772264736321,4.0671619,79.179,79.141,12.63567556]
[1772264736504,4.0671619,79.184,79.15,17.0071395]
[1772264736701,4.0671619,79.178,79.141,2.99556257]
[1772264736925,4.0671619,79.184,79.15,17.0071395]
[1772264737122,4.0671619,79.179,79.141,2.99556257]
[1772264737425,4.0671619,79.179,79.15,17.0071395]
[1772264737611,4.0671619,79.186,79.15,17.0071395]
[1772264737927,63.12256784,79.211,79.141,2.99556257]
[1772264737928,4.0671619,79.179,79.142,12.6355159]
[1772264738539,17.0071395,79.17,79.142,12.6355159]
[1772264738714,17.0071395,79.17,79.117,63.19705243]
[1772264738715,4.0671619,79.179,79.14,2.87324661]
[1772264739220,4.0671619,79.179,79.14,19.88038611]
[1772264739421,17.0071395,79.17,79.14,2.87324661]
[1772264739600,12.62865441,79.185,79.14,17.0071395]
[1772264739807,16.69581631,79.185,79.152,12.63391954]
[1772264740332,4.0671619,79.184,79.16,17.0071395]
[1772264740535,17.0071395,79.19,79.16,17.0071395]
[1772264740739,3.43205423,79.206,79.171,2.69655942]
[1772264741034,3.43205423,79.199,79.16,17.0071395]
[1772264741225,3.43205423,79.199,79.17,17.0071395]
[1772264741525,3.43205423,79.199,79.16,17.0071395]
[1772264742021,3.09121072,79.187,79.16,17.0071395]
[1772264742225,3.09121072,79.187,79.152,12.63391954]
[1772264742448,3.09121072,79.187,79.16,17.0071395]
[1772264742745,3.09121072,79.199,79.161,2.52579182]
[1772264743748,3.09121072,79.189,79.151,2.46959183]
[1772264743923,3.09121072,79.189,79.16,17.0071395]
[1772264744120,3.09121072,79.188,79.16,17.0071395]
[1772264744350,17.0071395,79.18,79.142,2.46959183]
[1772264744564,3.09121072,79.179,79.14,17.0071395]
[1772264744850,3.09121072,79.18,79.141,2.41402208]
[1772264745029,3.09121072,79.188,79.151,2.41402208]
[1772264746336,3.09121072,79.186,79.151,12.6339466]
[1772264746531,3.09121072,79.186,79.152,2.3047446]
[1772264746842,3.09121072,79.179,79.132,2.3047446]
[1772264747029,12.62833545,79.187,79.13,17.0071395]
[1772264747030,3.09121072,79.159,79.13,17.0071395]
[1772264747740,3.09121072,79.159,79.119,2.25102269]
[1772264747931,17.0071395,79.16,79.13,19.25816219]
[1772264748143,20.09835022,79.17,79.131,2.25102269]
[1772264748330,3.09121072,79.169,79.137,12.63619015]
[1772264749257,44.20317572,79.18,79.151,2.19790271]
[1772264749258,12.62954602,79.18,79.151,2.19790271]
[1772264749553,12.62954602,79.18,79.142,2.14537776]
[1772264749554,17.08611603,79.17,79.142,2.14537776]
[1772264749926,3.09121072,79.172,79.14,17.08611603]
[1772264750123,3.09121072,79.169,79.14,17.08611603]
[1772264750327,3.09121072,79.167,79.14,17.08611603]
[1772264750551,3.09121072,79.167,79.134,12.63679328]
[1772264750757,3.09121072,79.179,79.134,44.22877649]
[1772264751047,3.09121072,79.169,79.14,17.08611603]
[1772264751226,3.09121072,79.169,79.091,5.36086188]
[1772264751227,3.09121072,79.165,79.13,17.08611603]
[1772264751428,3.09121072,79.165,79.131,2.09344104]
[1772264752153,17.08611603,79.15,79.12,17.08611603]
[1772264752336,94.72208539,79.179,79.111,12.64046719]
[1772264752337,17.08611603,79.14,79.111,12.64046719]
[1772264752541,3.09121072,79.139,79.105,1.99130551]
[1772264752844,3.09121072,79.139,79.111,12.64046719]
[1772264753150,3.09121072,79.139,79.11,12.84058309]
[1772264753536,20.17732675,79.15,79.111,1.94109347]
[1772264753729,15.72552038,79.15,79.12,17.08611603]
[1772264753933,3.09121072,79.149,79.12,17.08611603]
[1772264754137,3.09121072,79.149,79.111,1.94109347]
[1772264754352,29.72042569,79.15,79.11,29.92669912]
[1772264754353,3.09121072,79.147,79.11,29.92669912]
[1772264755253,12.63455804,79.148,79.091,1.89144324]
[1772264755254,17.08611603,79.12,79.091,1.89144324]
[1772264755546,17.08611603,79.12,79.09,12.64382349]
[1772264755547,3.09121072,79.141,79.11,17.08611603]
[1772264755953,3.09121072,79.139,79.099,1.84234839]
[1772264756136,3.09121072,79.139,79.11,17.08611603]
[1772264756334,3.09121072,79.148,79.12,17.08611603]
[1772264756545,3.09121072,79.148,79.11,18.92846442]
[1772264757636,3.09121072,79.146,79.111,12.64046719]
[1772264758558,17.08611603,79.183,79.13,17.08611603]
[1772264758559,3.09121072,79.159,79.13,17.08611603]
[1772264759151,3.49,80.354,79.099,1.69857834]
[1772264759152,3.09121072,79.139,79.099,1.69857834]
[1772264759339,3.09121072,79.139,79.11,17.08611603]
[1772264759546,3.09121072,79.139,79.111,12.64046719]
[1772264759943,3.09121072,79.158,79.13,17.08611603]
[1772264760148,3.09121072,79.158,79.121,1.65164166]
[1772264760552,3.09121072,79.158,79.12,17.08611603]
[1772264760847,3.09121072,79.158,79.13,17.08611603]
[1772264761236,107.34898523,79.181,79.11,17.08611603]
[1772264761237,3.09121072,79.149,79.11,17.08611603]
[1772264761437,107.34898523,79.181,79.1,17.08611603]
[1772264761438,3.09121072,79.129,79.1,17.08611603]
[1772264761642,3.09121072,79.129,79.101,12.6420652]
[1772264761842,3.09121072,79.127,79.095,12.64301628]
[1772264762753,17.08611603,79.13,79.1,17.08611603]
[1772264762954,3.09121072,79.136,79.095,12.64301628]
[1772264762955,3.09121072,79.139,79.11,17.08611603]
[1772264763158,3.09121072,79.139,79.101,1.51395396]
[1772264763356,17.08611603,79.13,79.1,17.08611603]
[1772264763556,12.63775149,79.128,79.091,12.64366362]
[1772264763760,3.09121072,79.127,79.091,12.64366362]
[1772264764156,3.09121072,79.127,79.091,44.25282268]
[1772264764358,3.09121072,79.139,79.11,17.08611603]
[1772264764743,3.09121072,79.139,79.101,1.4690791]
[1772264765452,3.09121072,79.139,79.1,17.08611603]
[1772264765641,63.14991506,79.177,79.11,17.08611603]
[1772264765642,3.09121072,79.137,79.11,17.08611603]
[1772264766161,3.09121072,79.137,79.101,44.24722821]
[1772264766547,3.09121072,79.137,79.11,17.08611603]
[1772264766752,3.09121072,79.137,79.101,44.24722821]
[1772264766949,17.08611603,79.13,79.09,31.60942394]
[1772264767153,3.09121072,79.129,79.091,12.64366362]
[1772264767364,3.09121072,79.129,79.1,17.08611603]
[1772264768159,3.09121072,79.149,79.11,17.08611603]
[1772264768356,3.09121072,79.148,79.11,17.08611603]
[1772264768849,3.09121072,79.139,79.101,44.24722821]
[1772264769851,63.67046065,79.189,79.101,44.24722821]
[1772264769852,3.09121072,79.193,79.131,1.21651467]
[1772264770172,63.27297806,79.237,79.101,75.85239123]
[1772264770173,3.09121072,79.159,79.11,1.21651467]
[1772264770359,2.44904669,79.149,79.111,12.64046719]
[1772264770548,2.44904669,79.149,79.08,0.2]
[1772264770874,2.44904669,79.129,79.1,17.08611603]
[1772264771174,2.44904669,79.119,79.09,12.64382349]
[1772264771353,2.44904669,79.119,79.09,61.33949825]
[1772264772547,2.44904669,79.119,79.09,12.64382349]
[1772264772764,2.44904669,79.117,79.089,13.41523317]
[1772264773060,2.44904669,79.117,79.089,0.7712875]
[1772264773268,2.44904669,79.117,79.08,17.28611603]
[1772264773269,2.44904669,79.099,79.08,0.2]
[1772264773468,44.23772087,79.118,79.081,1.01514255]
[1772264773647,17.08611603,79.248,79.111,1.01514255]
[1772264773648,2.44904669,79.168,79.111,1.01514255]
[1772264773848,2.44904669,79.168,79.083,5.36086188]
[1772264773849,2.44904669,79.168,79.14,17.08611603]
[1772264774144,37.84,79.214,79.14,17.08611603]
[1772264774145,2.44904669,79.159,79.14,17.08611603]
[1772264774543,2.44904669,79.158,79.12,17.08611603]
[1772264774748,15.08200861,79.158,79.12,17.08611603]
[1772264774962,2.44904669,79.157,79.12,17.08611603]
[1772264776968,2.44904669,79.155,79.121,12.63886957]
[1772264777169,17.08611603,79.15,79.121,12.63886957]
[1772264777370,17.08611603,79.15,79.12,17.08611603]
[1772264777371,2.44904669,79.149,79.12,17.08611603]
[1772264777878,2.44904669,79.149,79.121,12.63886957]
[1772264779564,2.44904669,79.149,79.105,31.60339622]
[1772264779565,2.44904669,79.148,79.111,12.64046719]
[1772264779762,2.44904669,79.148,79.12,17.08611603]
[1772264780068,2.44904669,79.139,79.1,17.08611603]
[1772264780271,2.44904669,79.129,79.1,17.08611603]
[1772264780574,2.44904669,79.129,79.093,12.64334391]
[1772264781153,2.44904669,79.129,79.1,17.08611603]
[1772264781354,2.44904669,79.129,79.11,17.08611603]
[1772264781554,2.44904669,79.129,79.1,17.08611603]
[1772264783682,2.44904669,79.129,79.101,12.6420652]
[1772264784056,2.44904669,79.154,79.12,17.08611603]
[1772264785063,2.44904669,79.149,79.12,17.08611603]
[1772264786465,2.44904669,79.149,79.121,12.63886957]
[1772264788860,2.44904669,79.149,79.13,17.08611603]
[1772264789479,2.44904669,79.149,79.121,44.23604351]
[1772264790192,2.44904669,79.148,79.121,12.63886957]
[1772264790979,2.44904669,79.148,79.13,17.08611603]
[1772264791288,2.44904669,79.148,79.121,44.23604351]
[1772264791878,31.57867313,79.168,79.121,44.23604351]
[1772264792070,2.44904669,79.159,79.13,17.08611603]
[1772264792677,17.08611603,79.2,79.098,12.64254469]
[1772264792678,2.44904669,79.139,79.098,12.64254469]
[1772264792864,2.44904669,79.137,79.1,61.33378433]
[1772264793064,2.44904669,79.133,79.1,61.33378433]
[1772264793760,12.63615456,79.138,79.093,12.64318745]
[1772264793761,2.44904669,79.119,79.093,12.64318745]
[1772264794177,17.08611603,79.13,79.093,12.64318745]
[1772264794369,2.44904669,79.129,79.1,17.08611603]
[1772264795081,2.44904669,79.129,79.101,12.6420652]
[1772264795976,2.44904669,79.109,79.081,12.64526245]
[1772264796787,2.44904669,79.109,79.08,0.2]
[1772264796969,2.44904669,79.109,79.081,12.64526245]
[1772264797175,2.44904669,79.099,79.08,0.2]
[1772264799268,31.60216812,79.109,79.069,12.88849876]
[1772264799269,2.44904669,79.089,79.069,12.88849876]
[1772264799468,2.44904669,79.089,79.069,0.2413322]
[1772264801099,12.64254469,79.098,79.06,0.2]
[1772264801100,1.97429034,79.079,79.06,0.2]
[1772264801792,14.62001361,79.079,79.06,0.2]
[1772264801996,1.95230267,79.078,79.06,0.2]
[1772264802409,1.95230267,79.078,79.06,12.84860481]
[1772264802621,1.95230267,79.078,79.06,0.2]
[1772264803203,1.95230267,79.077,79.06,0.2]
[1772264803516,1.95230267,79.077,79.05,12.65008863]
[1772264803742,1.95230267,79.077,79.041,12.65166179]
[1772264803893,17.08611603,79.07,79.041,12.65166179]
[1772264804218,18.96798972,79.07,79.041,12.65166179]
[1772264804913,1.88187369,79.07,79.041,12.65166179]
[1772264805903,1.88187369,79.049,79.016,0.30387553]
[1772264806211,17.08611603,79.04,79.024,12.65430326]
[1772264806398,1.88187369,79.049,79.025,12.6542108]
[1772264806598,1.88187369,79.049,79.012,31.64050919]
[1772264807017,17.08611603,79.04,79.012,31.64050919]
[1772264807402,18.96798972,79.04,79.015,12.65579347]
[1772264807598,1.88187369,79.039,79.015,12.65579347]
[1772264807801,1.88187369,79.039,79.018,12.65522105]
[1772264808420,1.88187369,79.038,79.013,12.65599991]
[1772264809206,1.88187369,79.038,79.011,12.65642164]
[1772264809402,17.08611603,79.03,79.011,12.65642164]
[1772264809925,1.88187369,79.038,79.011,12.65642164]
[1772264810303,1.88187369,79.036,79.006,12.65714269]
[1772264810621,1.88187369,79.029,78.993,12.65934956]
[1772264810803,17.08611603,79.02,78.993,12.65934956]
[1772264811004,1.88187369,79.029,78.993,13.03655027]
[1772264811722,17.15566254,79.02,78.993,12.65934956]
[1772264811926,44.28305729,79.037,78.986,12.66047147]
[1772264811927,17.15566254,79.01,78.986,12.66047147]
[1772264812101,44.28305729,79.037,78.98,0.2]
[1772264812102,1.88187369,78.999,78.98,0.2]
[1772264812302,0.28432314,79.026,78.991,12.65967008]
[1772264812626,1.88187369,79.026,78.992,0.35316161]
[1772264812810,19.03753623,79.02,78.991,12.65967008]
[1772264813123,1.88187369,79.019,78.991,12.65967008]
[1772264815229,1.88187369,79.026,79.0,17.15566254]
[1772264815523,1.88187369,79.043,79.01,0.26028193]
[1772264815703,1.88187369,79.043,79.01,17.41594447]
[1772264816126,1.88187369,79.039,78.989,44.57024913]
[1772264816425,1.88187369,79.029,78.991,0.26028193]
[1772264816624,1.88187369,79.029,79.0,17.15566254]
[1772264816825,1.88187369,79.029,78.991,0.26028193]
[1772264817943,6.61267627,79.069,79.01,19.10742934]
[1772264818142,12.64734152,79.068,79.04,17.15566254]
[1772264818642,12.64734152,79.068,79.039,1.9517668]
[1772264818851,44.24890641,79.098,79.039,1.9517668]
[1772264819143,17.15566254,79.07,79.04,17.15566254]
[1772264819750,17.15566254,79.07,79.03,1.9517668]
[1772264820041,17.15566254,79.06,79.031,12.65326264]
[1772264820244,17.15566254,79.05,79.02,17.15566254]
[1772264820422,1.88187369,79.029,78.993,12.65934956]
[1772264820624,1.88187369,79.029,78.994,1.9517668]
[1772264821924,1.88187369,79.029,78.993,44.30772346]
[1772264821925,1.88187369,79.038,79.001,1.9517668]
[1772264822124,1.88187369,79.038,79.0,17.15566254]
[1772264822125,1.88187369,79.058,79.021,1.9517668]
[1772264822533,1.88187369,79.058,79.002,44.30267587]
[1772264822534,1.88187369,79.067,79.04,17.15566254]
[1772264822826,1.88187369,79.079,79.041,1.9517668]
[1772264823143,37.84,79.131,79.071,1.9517668]
[1772264823144,1e-08,79.099,79.071,1.9517668]
[1772264823346,1.88187369,79.119,79.08,17.15566254]
[1772264823654,1.88187369,79.118,79.081,1.9517668]
[1772264823943,1.88187369,79.118,79.04,5.36086188]
[1772264823944,1.88187369,79.109,79.071,1.9517668]
[1772264824249,1.88187369,79.107,79.072,12.64670174]
[1772264824446,1.88187369,79.107,79.071,1.9517668]
[1772264824629,1.88187369,79.107,79.072,12.64670174]
[1772264824947,1.88187369,79.099,79.066,12.64751798]
[1772264825250,17.15566254,79.09,79.061,14.59549463]
[1772264827152,14.52518585,79.094,79.061,14.59549463]
[1772264827541,1.88187369,79.093,79.061,14.59549463]
[1772264827747,17.15566254,79.09,79.061,14.59549463]
[1772264829153,1.88187369,79.093,79.061,14.59549463]
[1772264829643,17.15566254,79.09,79.061,14.59549463]
[1772264830547,17.15566254,79.08,79.052,1.55568874]
[1772264830850,1.59644681,79.079,79.041,14.20735053]
[1772264831052,0.1,79.12,79.041,14.20735053]
[1772264831053,12.64126614,79.106,79.071,1.55568874]
[1772264831252,14.23695694,79.111,79.081,1.55568874]
[1772264831470,17.15566254,79.11,79.081,1.55568874]
[1772264831966,14.23623525,79.116,79.083,1.55568874]
[1772264832132,1.59644681,79.115,79.083,1.55568874]
[1772264833145,17.15566254,79.11,79.083,1.55568874]
[1772264833352,1.59644681,79.109,79.077,12.64581245]
[1772264834263,1.59644681,79.107,79.072,14.20239048]
[1772264834558,1.59644681,79.107,79.073,1.55568874]
[1772264834763,1.59644681,79.099,79.06,29.80428384]
[1772264834975,1.59644681,79.089,79.05,17.15566254]
[1772264835254,17.15566254,79.08,79.05,29.80578186]
[1772264835437,1.59644681,79.079,79.05,17.15566254]
[1772264835637,17.15566254,79.09,79.06,17.15566254]
[1772264835860,17.15566254,79.09,79.051,1.55568874]
[1772264836056,1.59644681,79.089,79.06,17.15566254]
[1772264836362,14.24047326,79.089,79.056,12.64911931]
[1772264836561,1.59644681,79.088,79.056,12.64911931]
[1772264836744,17.15566254,79.09,79.06,17.15566254]
[1772264836944,17.15566254,79.09,79.061,1.55568874]
[1772264837148,12.64398336,79.089,79.061,1.55568874]
[1772264837443,12.64398336,79.089,79.056,12.64911931]
[1772264837444,1.59644681,79.088,79.056,12.64911931]
[1772264837844,1.59644681,79.088,79.056,14.20480805]
[1772264838175,17.15566254,79.09,79.062,1.55568874]
[1772264839040,17.15566254,79.09,79.061,12.64846131]
[1772264839041,1.59644681,79.088,79.061,12.64846131]
[1772264840059,1.59644681,79.079,79.05,17.15566254]
[1772264840274,1.59644681,79.079,79.051,12.65006135]
[1772264840275,12.64574217,79.078,79.051,12.65006135]
[1772264840560,12.64574217,79.078,79.045,14.20656635]
[1772264840561,1.59644681,79.077,79.045,14.20656635]
[1772264840758,1.59644681,79.077,79.046,1.53891652]
[1772264841357,1.59644681,79.077,79.05,17.15566254]
[1772264842460,1.59644681,79.075,79.047,12.65070148]
[1772264842854,1.59644681,79.069,79.042,12.65144411]
[1772264843058,17.15566254,79.07,79.043,1.49556926]
[1772264843258,12.64430826,79.087,79.051,1.49556926]
[1772264843763,1.59644681,79.086,79.051,1.49556926]
[1772264844258,17.15566254,79.08,79.052,12.64990133]
[1772264844458,17.15566254,79.08,79.041,31.62915448]
[1772264844459,1.59644681,79.079,79.042,12.65150173]
[1772264844643,18.75210935,79.07,79.042,12.65150173]
[1772264844843,1.59644681,79.07,79.042,12.65150173]
[1772264845777,1.59644681,79.07,79.042,14.08766002]
[1772264846939,1.59644681,79.07,79.042,12.65150173]
[1772264847134,1.59644681,79.079,79.051,1.41689147]